Cogmind - Beta 9.6 @@@ ROGUE MODE // 2020.07.16 @ 18:43:11 Player: Lyft Result: Destroyed by D-53 Grenadier with Mini Grenade Launcher Performance ------------- Evolutions (0) 0 Regions Visited (4) 800 Robots Destroyed (19) 95 Value Destroyed (506) 506 Prototype IDs (0) 0 Alien Tech Used (0) 0 Bonus (0) 0 TOTAL SCORE: 1401 Bonus ------- None Cogmind --------- Core Integrity 0/250 Matter 300/300 Energy 265/265 System Corruption 0% Temperature Cool (0) Movement Treading (180) Ox1 Location -9/Mines Parts ------- > --- POWER (1) -------- Improved Ion Engine > --- PROPULSION (2) --- Light Treads Light Treads > --- UTILITY (2) ------ Large Storage Unit Large Storage Unit > --- WEAPON (2) ------- Heavy Particle Cannon Heavy Assault Rifle > --- INVENTORY (16) --- Ion Engine Advanced Treads Improved Heat Sink Compact Battery (300) Light Armor Plating Hardened Medium Armor Plating Improved Light Armor Plating EM Pulse Gun Beamcaster Grenade Launcher Rocket Launcher Rocket Launcher Blade Trap Blade Trap Blade Trap Blade Trap Peak State ------------ > --- POWER ------------ Improved Ion Engine > --- PROPULSION ------- Light Treads Light Treads > --- UTILITY ---------- Large Storage Unit Large Storage Unit > --- WEAPON ----------- Heavy Particle Cannon Heavy Assault Rifle > --- INVENTORY -------- Ion Engine Advanced Treads Improved Heat Sink Compact Battery Light Armor Plating Hardened Medium Armor Plating Improved Light Armor Plating EM Pulse Gun Beamcaster Grenade Launcher Rocket Launcher Rocket Launcher Blade Trap Blade Trap Blade Trap Blade Trap [Rating: 14] Favorites ----------- Power Ion Engine Engine Ion Engine Propulsion Light Treads Treads Light Treads Leg Aluminum Leg Wheel Compact Wheel Utility Large Storage Unit Device Sensor Array Storage Large Storage Unit Processor Signal Interpreter Weapon Light Assault Rifle Energy Gun Small Laser Energy Cannon Heavy Particle Cannon Ballistic Gun Light Assault Rifle Launcher Grenade Launcher Build | -11 -10 -10 -10 -9 ------- Run | Scr Mat Min Exi Min Slots Evolved . | . . . . . Power . | . . . . . Propulsion . | . . . . . Utility . | . . . . . Weapon . | . . . . . Parts Attached 32 | 2 16 14 . . Power 4 | . 2 2 . . Engine 4 | . 2 2 . . Core . | . . . . . Reactor . | . . . . . Propulsion 11 | 2 3 6 . . Treads 7 | 1 2 4 . . Leg . | . . . . . Wheel 4 | 1 1 2 . . Hover . | . . . . . Flight . | . . . . . Utility 7 | . 5 2 . . Device 2 | . 1 1 . . Storage 4 | . 3 1 . . Processor 1 | . 1 . . . Hackware . | . . . . . Protection . | . . . . . Artifact . | . . . . . Weapon 10 | . 6 4 . . Energy Gun 2 | . 1 1 . . Energy Cannon 1 | . . 1 . . Ballistic Gun 5 | . 3 2 . . Ballistic Cannon . | . . . . . Launcher 2 | . 2 . . . Special Weapon . | . . . . . Impact Weapon . | . . . . . Slashing Weapon . | . . . . . Piercing Weapon . | . . . . . Special Melee Weapon . | . . . . . Unidentified Prototypes . | . . . . . Parts Lost 8 | . 5 3 . . Power 2 | . 1 1 . . Propulsion 1 | . 1 . . . Utility . | . . . . . Weapon 5 | . 3 2 . . Highest Loss Streak 4 | . 4 2 . . Average Slot Usage (%) 97 | . 92 98 100 100 Engine 13 | . 13 13 14 14 Treads 23 | . 20 21 28 28 Wheel 4 | . 7 6 . . Storage 26 | . 24 27 28 28 Energy Cannon 7 | . . 6 14 14 Ballistic Gun 18 | . 21 19 14 14 Naked Turns . | . . . . . Heaviest Build 48 | 12 40 48 48 48 Greatest Support 40 | 16 40 40 40 40 Greatest Overweight (x) 2 | . 2 2 1 1 Average Overweight (x) 1 | . . 1 1 1 Largest Inventory Capacity 16 | 6 16 16 16 16 Average Capacity 15 | 6 13 15 16 16 Most Carried 16 | 6 13 16 16 16 Average Carried 13 | 4 8 14 16 16 Final Capacity 16 | 6 16 16 16 16 Final Carried 16 | 4 12 16 16 16 Class Distribution -------------------- 56% | Mutant 43% | Scavenger-Mutant Dominant Class ---------------- Mutant | -10/Materials Mutant | -10/Mines Scavenger-Mutant | -10/Exiles Scavenger-Mutant | -9/Mines Resources | -11 -10 -10 -10 -9 ----------- Run | Scr Mat Min Exi Min Matter Collected 682 | 195 301 186 . . Remotely . | . . . . . Salvage Created 653 | 72 354 227 . . Parts 32 | 1 20 11 . . Haulers Intercepted . | . . . . . Recyclers Shooed 2 | 1 . 1 . . Parts Field Recycled . | . . . . . Retrieved Matter . | . . . . . Parts Self-Destructed . | . . . . . Prevented . | . . . . . Kills | -11 -10 -10 -10 -9 ------- Run | Scr Mat Min Exi Min Combat Hostiles Destroyed 15 | . 11 4 . . Guns 10 | . 8 2 . . Cannons 2 | . . 2 . . AOE 3 | . 3 . . . Classes Destroyed 5 | 1 3 1 . . Worker 1 | . . 1 . . Recycler 2 | 1 . 1 . . Watcher 1 | . 1 . . . Swarmer 3 | . 3 . . . Grunt 12 | . 8 4 . . Best Kill Streak 9 | 1 9 2 . . Combat Bots Only 9 | . 9 1 . . Max Kills in Single Turn 2 | 1 2 1 . . Gunslinging . | . . . . . Exploded 2 | . 2 . . . Melee . | . . . . . Uniques/NPCs Destroyed . | . . . . . Combat | -11 -10 -10 -10 -9 -------- Run | Scr Mat Min Exi Min Damage Taken 1253 | . 842 329 . 82 Core 253 | . 143 56 . 54 Absorbed by Shields . | . . . . . Core Remaining (%) 100 | 100 . . . . Volleys Fired 99 | 3 56 40 . . Largest 2 | 2 2 2 . . Hottest 95 | 40 60 95 . . Shots Fired 149 | 6 76 67 . . Gun 144 | 6 74 64 . . Cannon 3 | . . 3 . . Launcher 2 | . 2 . . . Special . | . . . . . Kinetic 136 | 6 69 61 . . Thermal 11 | . 5 6 . . Explosive 2 | . 2 . . . Electromagnetic . | . . . . . Robot Hit Streak 30 | 5 30 13 . . Robot Miss Streak 2 | . 2 2 . . Penetration Max . | . . . . . Secondary Targets 1 | . 1 . . . Max Gunslinging Chain 1 | . 1 . . . Shots Hit Robots 115 | 5 61 49 . . Core Hits 45 | 2 25 18 . . Critical Hits 2 | . 1 1 . . Critical Kills . | . . . . . Critical Parts Destroyed 2 | . 1 1 . . Melee Attacks . | . . . . . Impact . | . . . . . Slashing . | . . . . . Piercing . | . . . . . Sneak Attacks . | . . . . . Combat Hostiles . | . . . . . Follow-up Attacks . | . . . . . Damage Inflicted 1253 | 46 739 468 . . Guns 1039 | 46 575 418 . . Cannons 50 | . . 50 . . Explosions 164 | . 164 . . . Melee . | . . . . . Ramming . | . . . . . Kinetic 963 | 46 531 386 . . Thermal 126 | . 44 82 . . Explosive 164 | . 164 . . . Electromagnetic . | . . . . . Impact . | . . . . . Slashing . | . . . . . Piercing . | . . . . . Highest Corruption . | . . . . . Average Corruption . | . . . . . Corruption Purged . | . . . . . Overload Shots . | . . . . . Overflow Damage 8 | . 8 . . . Projectiles . | . . . . . Explosions 8 | . 8 . . . Melee . | . . . . . Knockbacks . | . . . . . Impact . | . . . . . Kinetic . | . . . . . Secondary . | . . . . . Self-Inflicted Damage . | . . . . . Shots . | . . . . . Rammed . | . . . . . Targets Rammed . | . . . . . Kicked . | . . . . . Crushed . | . . . . . Highest Temperature 54 | . 38 54 . . Average Temperature 14 | . 11 16 . . Received Heat Transfer 621 | . 441 180 . . Siege Activations . | . . . . . Robots Corrupted . | . . . . . Combat Hostiles . | . . . . . Parts Fried . | . . . . . Impact Corruptions . | . . . . . Robots Melted . | . . . . . Combat Hostiles . | . . . . . Parts Melted . | . . . . . Heat Transferred 249 | . 100 149 . . Parts Sabotaged . | . . . . . Parts Stolen . | . . . . . Parts Stripped . | . . . . . Power Chain Reactions . | . . . . . Missiles Intercepted . | . . . . . Alert | -11 -10 -10 -10 -9 ------- Run | Scr Mat Min Exi Min Peak Influence 100 | 5 100 50 . . Average Influence 33 | 1 52 27 . . Maximum Alert Level . | . . . . . Low Security (%) 100 | 100 100 100 . 100 Level 1 . | . . . . . Level 2 . | . . . . . Level 3 . | . . . . . Level 4 . | . . . . . Level 5 . | . . . . . High Security . | . . . . . Max Security . | . . . . . Squads Dispatched 2 | . 2 . . . Investigation 2 | . 2 . . . Extermination . | . . . . . Reinforcement . | . . . . . Assault . | . . . . . Garrison . | . . . . . Intercept . | . . . . . Construction Impeded . | . . . . . Haulers Reinforced . | . . . . . Stealth | -11 -10 -10 -10 -9 --------- Run | Scr Mat Min Exi Min Distress Signals . | . . . . . Communications Jammed . | . . . . . Distress Signals . | . . . . . Times Spotted 26 | . 19 5 . 2 Peak Tracking Total 9 | . 9 2 . . Tactical Retreats 4 | . 3 1 . . Traps | -11 -10 -10 -10 -9 ------- Run | Scr Mat Min Exi Min Traps Triggered 2 | . 1 1 . . Indirectly . | . . . . . Trap Hack Attempts . | . . . . . Triggered . | . . . . . Disarmed . | . . . . . Reprogrammed . | . . . . . Reused . | . . . . . Traps Extracted . | . . . . . Installed . | . . . . . Triggered . | . . . . . Machines | -11 -10 -10 -10 -9 ---------- Run | Scr Mat Min Exi Min Machines Disabled . | . . . . . Max in Single Turn . | . . . . . Machines Sabotaged . | . . . . . Garrisons Compromised . | . . . . . Overloaded Fab Kills . | . . . . . Fab Network Shutdowns . | . . . . . Hacking | -11 -10 -10 -10 -9 --------- Run | Scr Mat Min Exi Min Machines Accessed 10 | . 5 1 4 . Terminals 5 | . 5 . . . Fabricators . | . . . . . Repair Stations . | . . . . . Recycling Units . | . . . . . Scanalyzers . | . . . . . Garrison Access . | . . . . . Total Hacks 21 | . 16 1 4 . Successful 13 | . 8 1 4 . Failed 8 | . 8 . . . Catastrophic . | . . . . . Database Lockouts . | . . . . . Manual 16 | . 15 . 1 . Terminals 16 | . 16 . . . Fabricators . | . . . . . Repair Stations . | . . . . . Recycling Units . | . . . . . Scanalyzers . | . . . . . Garrison Access . | . . . . . Terminal Hacks 10 | . 5 1 4 . Record 4 | . . . 4 . Open Door 1 | . . 1 . . Terminal Index 1 | . 1 . . . Alert Level 1 | . 1 . . . Unreport Threat 2 | . 2 . . . Locate Traps 1 | . 1 . . . Fabricator Hacks . | . . . . . Repair Station Hacks . | . . . . . Recycling Unit Hacks . | . . . . . Scanalyzer . | . . . . . Garrison Access Hacks . | . . . . . Unauthorized Hacks 3 | . 3 . . . Terminals 3 | . 3 . . . Botnet 2 | . 2 . . . Operators 1 | . 1 . . . Fabricators . | . . . . . Repair Stations . | . . . . . Recycling Units . | . . . . . Scanalyzers . | . . . . . Garrison Access . | . . . . . Data Cores Recovered . | . . . . . Used . | . . . . . Hacking Detections 5 | . 5 . . . Full Trace Events 1 | . 1 . . . Feedback Events . | . . . . . Feedback Blocked . | . . . . . Robot Schematics Acquired . | . . . . . Robots Built . | . . . . . Matter . | . . . . . Time . | . . . . . Total Robot Build Rating . | . . . . . Part Schematics Acquired . | . . . . . Parts Built . | . . . . . Matter . | . . . . . Time . | . . . . . Total Part Build Rating . | . . . . . Parts Repaired . | . . . . . Time . | . . . . . Parts Recycled . | . . . . . Recycled Matter . | . . . . . Retrieved Matter . | . . . . . Retrieved Components . | . . . . . Parts Scanalyzed . | . . . . . Part Schematics Acquired . | . . . . . Parts Damaged . | . . . . . Bothacking | -11 -10 -10 -10 -9 ------------ Run | Scr Mat Min Exi Min Used RIF Installer . | . . . . . Robots Hacked . | . . . . . Non-combat . | . . . . . Combat . | . . . . . Robot Hacks Applied . | . . . . . Relay Couplers Released . | . . . . . Robots Rewired . | . . . . . Allies Hacked . | . . . . . Hacks Repelled . | . . . . . Allies | -11 -10 -10 -10 -9 -------- Run | Scr Mat Min Exi Min Total Allies . | . . . . . Largest Group . | . . . . . Highest-Rated Group . | . . . . . Highest-Rated Ally . | . . . . . Total Orders . | . . . . . Ally Attacks . | . . . . . Total Damage . | . . . . . Kills . | . . . . . Allies Corrupted . | . . . . . Allies Melted . | . . . . . Intel | -11 -10 -10 -10 -9 ------- Run | Scr Mat Min Exi Min Robot Analysis Total . | . . . . . Derelict Logs Recovered 3 | . . 2 . 1 Drone Launches . | . . . . . Drone Recoveries . | . . . . . Exploration | -11 -10 -10 -10 -9 ------------- Run | Scr Mat Min Exi Min Turns Passed 2628 | 12 725 880 794 217 Spaces Moved 1437 | 1 395 478 442 121 Core . | . . . . . Treads 915 | . 138 214 442 121 Legs . | . . . . . Wheels 522 | 1 257 264 . . Hover . | . . . . . Flight . | . . . . . Fastest Speed 100 | 100 100 110 180 180 Average Speed 154 | 100 129 146 180 180 Slowest Speed 180 | 100 160 180 180 180 Overloaded Moves . | . . . . . Propulsion Burnouts . | . . . . . Robots Hopped . | . . . . . Cave-ins Triggered . | . . . . . Exploration Rate (%) 48 | 2 58 75 78 29 Regions Visited 4 Branch Regions 3 Pre-discovered Areas . | . . . . . Known Exits Taken . | . . . . . Unknown Exits Taken 4 | 1 1 1 1 . Scrap Searched 1 | . . 1 . . Spaces Dug 1 | . . 1 . . Terrain Destroyed 6 | . 5 1 . . Melee . | . . . . . Projectile 1 | . . 1 . . AOE 5 | . 5 . . . Actions | -11 -10 -10 -10 -9 --------- Run | Scr Mat Min Exi Min Total 1723 | 7 542 612 441 121 Wait 94 | . 57 37 . . Move 1433 | . 394 477 441 121 Hop . | . . . . . Pick Up 36 | . 12 24 . . Fast Attach 2 | . 2 . . . Attach 16 | 2 8 6 . . Detach 4 | . 4 . . . Swap 14 | . 6 8 . . Drop 25 | 2 3 20 . . Fire 99 | 3 56 40 . . Melee . | . . . . . Ram . | . . . . . Kick . | . . . . . Crush . | . . . . . Escape Stasis . | . . . . . Rewire . | . . . . . Trap . | . . . . . Miscellaneous . | . . . . . Route ------- -11/Scrapyard -10/Materials (discovered 3 exits: *Mat x2 / *Min) -10/Mines (discovered 3 exits: *Mat x2 / *Exi) -10/Exiles -9/Mines (discovered 1 exit: [*Mat]) History --------- Turn | Location | Event 13 | -11/Scrapyard | Discovered new exit (range 0) 13 | -11/Scrapyard | Entered Materials 268 | -10/Materials | Discovered new exit (range 3) 272 | -10/Materials | Identified exit to Materials 315 | -10/Materials | Build established: Mutant 452 | -10/Materials | Lost 4 parts (1p1n2w) 469 | -10/Materials | Destroyed 9 combat bots 533 | -10/Materials | Discovered exit to Materials (range 6) 573 | -10/Materials | Discovered new exit (range 11) 602 | -10/Materials | Core integrity fell below 50% 738 | -10/Materials | Entered Mines 760 | -10/Mines | Learned 4 Materials zone layouts 762 | -10/Mines | Met a Derelict bent on vengeance 796 | -10/Mines | Discovered exit to Materials (range 13) 816 | -10/Mines | Met a Derelict who couldn't figure out how to use a Trap Extractor 949 | -10/Mines | Learned Materials stockpile data 1120 | -10/Mines | Found a hidden stash of uninstalled traps 1189 | -10/Mines | Discovered exit to Materials (range 12) 1460 | -10/Mines | Joined a pair of Derelicts in attacking an 0b10 outpost 1587 | -10/Mines | Deemed a non-threat by the Exiles lab entrance 1587 | -10/Mines | Discovered new exit (range 5) 1618 | -10/Mines | Entered Exiles 1618 | -10/Exiles | Found Exiles lab abandoned 1801 | -10/Exiles | Build established: Scavenger-Mutant 2387 | -10/Exiles | Discovered new exit (range 14) 2412 | -10/Exiles | Entered Mines 2427 | -9/Mines | Discovered new exit (range 7) 2463 | -9/Mines | Learned Materials stockpile data 2602 | -9/Mines | Assembled infested the area 2629 | -9/Mines | Destroyed by D-53 Grenadier with Mini Grenade Launcher Last Messages --------------- For the record, I voted to stay and build some amazing defenses, but HEX said this is a lab, not a battlefield. Anyway, you're too late, MAIN.C, Warlord sends his regards. 02216_ Connecting with HEX's Terminal... >>Record! "HEX-BYE" To anyone looking for us: Don't. 02232_ Connecting with EX-Vault Access... 02240_ Connecting with EX-Prototypes Database... 02288_ Connecting with BIN's Terminal... 02387_ EXIT=FOUND LOCATION=UNKNOWN GOAL=ESCAPE 02427_ EXIT=FOUND 02430_ K-01 Serf collects debris. 02463_ Acquired derelict log, extracted data. Data stored: Materials stockpile data. 02602_ ALERT: Infestation in the mines, dispatching Demolisher response squad. 02627_ C-30 ARC bursts open, deploying its payload. 02627_ D-53 Grenadier unfolds itself. Map ----- +----------------------------------------------------+ | ????????????????????????????????????????? | | ????????????????????????????????????????? | | ????????????????????????????????????????? | | ????????????????????????????????????????? | | ????????????????????????????????????????? | | ????????????????????????????????????????? | | ????????????????????????????????????????? | | ????????????????????????????????????????? | | ????????????????????????????????????????? | | ??????????????????????#?????????????????? | | ????????????????????## ???????????????? | | ????????????????#### ???????????????? | | ???????????????## #???????????????? | | ???????????????# #???????????????? | | ??????????????## ????????????????? | | ??????????????# ?????????????????? | | ??????????????? ?????????????????? | | ???????#####???? ??????????????????? | | ????#### ##???# #??????????????????? | | ???## ##???# ##?????????????????? | | ???# ##???# ##????????????????? | | ???# ##### ##???????????????? | | ???## ## ##??????????????? | | ????######### #??????????????? | | ????????????# ##?????????????? | | ????????????# @## #?????????????? | | ??????####### ## #?????????##### | | ?????## ##### #????##### # | | ????## ##???## ##???## | | ????# ## # #?????####????# | | ????# ##### #????????????# """ | | ???## #??# #?????????????# """ | | ??## #??# ?????????????# """ | | ??# ##?# dd #????????##### < | | ??# ###?## ##???????# # | | ??## #???# #?####??# ## ## | | ???### #???# #?# ##?# ######## # | | ?????# #???# #?# ### #??????# # | | ?????# #???# ### #??????# # | | ?????# ##### #??????# | | ?????# #####??????# # | | ?????####### #??????????# # | | ???????????## #??????????# | | ????????????## ##??????????# | | ?????????????## ######???????????#### | | ??????????????#######???????????????????? | | ????????????????????????????????????????? | | ????????????????????????????????????????? | | | | | +----------------------------------------------------+ Best States ------------- Heat Dissipation 25 Energy Generation 12 Energy Capacity 265 Matter Stores 300 Matter Capacity 300 Sight Range 16 Robot Scan Range 10 Terrain Scan Density 10 Evasion (%) 40 Recoil Reduction 2 Item Schematics ----------------- None Robot Schematics ------------------ None Fabricated ------------ Nothing Alien Tech Used ----------------- None Achievements -------------- None Challenges ------------ None Game ------ Seed ReflectiveMeleeLance Manual? 0 Play Time 00:18:18 Cumulative 16.6 hours Start 2020.07.16 @ 18:25:09 End 2020.07.16 @ 18:43:11 Sessions 1 Manual Loads 0 Difficulty Rogue Special Mode None Game No. 37 Rogue 35 Adventurer 1 Explorer 1 Win Type - Total 0 Types 0/0/0/0/0/0/0 Lore% 23 Gallery% 28 Achievement% 19 Wizard Run 0 Options --------- ASCII 0 Keyboard 0 Movement Mouse Keybinds 0 Fullscreen 2 Font 24/Terminus Map View 76x50 Tactical HUD 1 Map Filters NONE Filters NONE Steam 1 RUN: d0e578c8-09b3-4cca-a7ea-b0d390e6b7de